Cogmind - Beta 16.1 @@@ ROGUE MODE // 2026.02.13 @ 13:35:08 Player: Jimothy Jimone Result: Destroyed by G-73 Enforcer with Heavy Laser Performance ------------- Evolutions (6) 3000 Regions Visited (8) 1600 Robots Destroyed (35) 175 Value Destroyed (1155) 1155 Prototype IDs (0) 0 Alien Tech Used (0) 0 Bonus (500) 500 TOTAL SCORE: 6430 Bonus ------- Entered DSFs 500 Cogmind --------- Core Integrity 0/1150 Matter 285/300 Energy 49/100 System Corruption 7% Temperature Cool (0) Movement Core (50) Location -4/Factory Parts ------- > --- POWER (3) -------- (None) > --- PROPULSION (4) --- (None) > --- UTILITY (9) ------ Improved Signal Interpreter Hacking Suite > --- WEAPON (3) ------- Heavy Mace > --- INVENTORY (5) ---- Improved Melee Analysis Suite Recalibrator Peak State ------------ > --- POWER ------------ Neutrino Core > --- PROPULSION ------- Improved Medium Treads Armored Medium Treads Nuclear Pulse Thruster > --- UTILITY ---------- Improved Sensor Array Improved Signal Interpreter Advanced Terrain Scanner Improved Terrain Scan Processor Improved Targeting Computer Force Booster Shock Absorption System Remote Force Field Hacking Suite > --- WEAPON ----------- Improved Remote Datajack Heavy Mace Power Maul > --- INVENTORY -------- Power Amplifier Improved Melee Analysis Suite Improved System Restoration Module Recalibrator Heavy Mace [Rating: 70] Favorites ----------- Power Light Nuclear Core Engine Deuterium Engine Power Core Light Nuclear Core Propulsion Improved Carbon-fiber Leg Treads Improved Treads Leg Improved Carbon-fiber Leg Flight Unit Nuclear Pulse Thruster Utility Hacking Suite Device Improved Sensor Array Processor Improved Targeting Computer Hackware Hacking Suite Protection Improved Light Armor Plating Weapon Power Maul Energy Cannon Ion Cannon Ballistic Gun Minigun Ballistic Cannon Gauss Cannon Special Weapon Improved Remote Datajack Impact Weapon Power Maul Build | -11 -10 -9 -8 -7 -6 -6 -5 -4 ------- Run | Yrd Mat Mat Mat Fac Fac DSF Fac Fac Slots Evolved 12 | . . 2 2 2 2 . 2 2 Power 2 | . . . 1 . . . 1 . Propulsion 2 | . . 1 1 . . . . . Utility 7 | . . 1 . 2 2 . 1 1 Weapon 1 | . . . . . . . . 1 Parts Attached 77 | 4 5 6 20 12 3 8 14 5 Power 14 | 1 1 1 4 2 . 2 2 1 Engine 8 | 1 1 1 2 2 . . 1 . Core 6 | . . . 2 . . 2 1 1 Reactor . | . . . . . . . . . Propulsion 20 | 2 2 1 4 4 . 4 2 1 Treads 10 | 2 . 1 4 . . . 2 1 Leg 4 | . . . . 4 . . . . Wheel . | . . . . . . . . . Hover . | . . . . . . . . . Flight 6 | . 2 . . . . 4 . . Utility 31 | . 2 1 9 3 3 2 9 2 Device 22 | . 2 1 5 3 1 1 7 2 Storage . | . . . . . . . . . Processor 7 | . . . 2 . 2 1 2 . Hackware 1 | . . . 1 . . . . . Protection 1 | . . . 1 . . . . . Artifact . | . . . . . . . . . Weapon 12 | 1 . 3 3 3 . . 1 1 Energy Gun . | . . . . . . . . . Energy Cannon 1 | . . . 1 . . . . . Ballistic Gun 4 | 1 . 1 1 1 . . . . Ballistic Cannon 1 | . . . . 1 . . . . Launcher . | . . . . . . . . . Special Weapon 2 | . . 1 . . . . 1 . Impact Weapon 4 | . . 1 1 1 . . . 1 Slashing Weapon . | . . . . . . . . . Piercing Weapon . | . . . . . . . . . Special Melee Weapon . | . . . . . . . . . Unidentified Prototypes . | . . . . . . . . . Corrupted Parts 2 | . . . . . . . . 2 System Corruption 7 | . . . . . . . . 7 Parts Lost 49 | . . 10 10 . . 4 7 18 Power 8 | . . 1 4 . . . 1 2 Propulsion 14 | . . 5 2 . . 1 2 4 Utility 21 | . . 3 2 . . 3 4 9 Weapon 6 | . . 1 2 . . . . 3 Highest Loss Streak 18 | . . 8 7 . . 2 4 18 To Critical Strikes . | . . . . . . . . . Average Backups 3 | . 3 3 2 4 4 4 4 4 Power . | . 1 2 . . . . . . Propulsion . | . 1 . . . . . . . Utility 2 | . . . 1 3 3 3 2 3 Weapon . | . . 1 . . 1 1 1 1 Tool/Special . | . . . . . . . . . Unused Backups 2 | . . . . 1 . . . 1 Power 1 | . . . . 1 . . . . Propulsion . | . . . . . . . . . Utility 1 | . . . . . . . . 1 Weapon . | . . . . . . . . . Tool/Special . | . . . . . . . . . Average Slot Usage (%) 80 | . 64 83 68 98 99 98 62 79 Engine 6 | . 8 10 8 8 13 4 . . Core 3 | . . . 4 5 . 8 1 4 Treads 10 | . 7 24 22 . . . 5 10 Leg 8 | . . . . 28 26 14 . . Flight 4 | . 21 4 . . . 11 8 4 Device 16 | . 12 26 8 14 20 19 19 23 Processor 7 | . . . 3 7 12 12 11 14 Hackware 4 | . . . 3 7 6 6 5 5 Protection 3 | . . . 3 7 6 6 . . Energy Cannon 1 | . . . 6 . . . . . Ballistic Gun 4 | . 14 14 . 3 6 6 . . Impact Weapon 6 | . . . 6 8 6 6 5 9 Peak Build Rating 70 | 3 7 13 29 46 49 56 62 70 Average Rating 34 | 2 4 9 17 43 48 51 42 66 On Entrance 26 | . 3 7 2 24 45 49 43 62 Avg Prop Armor Cover (%) 9 | 33 24 6 9 . . . 3 1 Naked Turns . | . . . . . . . . . Heaviest Build 42 | 5 8 13 27 30 31 31 36 42 Greatest Support 92 | 40 8 60 92 72 72 72 57 84 Greatest Overweight (x) 3 | 1 . 1 3 1 . 3 3 1 Average Overweight (x) . | . . . . . . . . . Largest Inventory Capacity 5 | 5 5 5 5 5 5 5 5 5 Average Capacity 5 | 5 5 5 5 5 5 5 5 5 Most Carried 5 | 1 5 5 5 5 5 5 5 5 Average Carried 3 | . 3 3 2 4 4 4 4 4 Final Capacity 5 | 5 5 5 5 5 5 5 5 5 Final Carried 5 | 1 5 5 5 5 5 3 4 2 Class Distribution -------------------- 74% | Mutant 13% | Gladiator 9% | Assassin 3% | Scout Dominant Class ---------------- Mutant | -10/Materials Mutant | -9/Materials Mutant | -8/Materials Mutant | -7/Factory Assassin | -6/Factory Assassin | -6/DSF Mutant | -5/Factory Gladiator | -4/Factory Resources | -11 -10 -9 -8 -7 -6 -6 -5 -4 ----------- Run | Yrd Mat Mat Mat Fac Fac DSF Fac Fac Matter Collected 1164 | 187 39 247 221 76 . 107 139 148 Remotely . | . . . . . . . . . Salvage Created 1394 | . 51 179 553 76 . 101 204 230 Parts 58 | . 8 16 20 3 . 3 6 2 Haulers Intercepted . | . . . . . . . . . Recyclers Shooed . | . . . . . . . . . Parts Field Recycled . | . . . . . . . . . Retrieved Matter . | . . . . . . . . . Parts Self-Destructed . | . . . . . . . . . Prevented . | . . . . . . . . . Parts Restored . | . . . . . . . . . Kills | -11 -10 -9 -8 -7 -6 -6 -5 -4 ------- Run | Yrd Mat Mat Mat Fac Fac DSF Fac Fac Combat Hostiles Destroyed 25 | . 3 5 9 2 . 2 3 1 Melee 7 | . . 1 2 1 . 2 1 . Guns 9 | . 3 4 2 . . . . . AOE 2 | . . . 2 . . . . . Classes Destroyed 12 | . 1 2 4 2 . . 1 2 Worker 1 | . . . . . . . 1 . Builder 3 | . . . 2 . . . 1 . Tunneler 1 | . . . . . . . . 1 Recycler 2 | . . . 1 . . . . 1 Operator 2 | . . . 1 . . . . 1 Watcher 1 | . . . 1 . . . . . Swarmer 5 | . 3 2 . . . . . . Grunt 13 | . . 1 7 . . 2 3 . Sentry 4 | . . 2 2 . . . . . Hunter 1 | . . . . 1 . . . . Programmer 1 | . . . . 1 . . . . Heavy 1 | . . . . . . . . 1 Best Kill Streak 4 | . 3 3 4 1 . 2 3 1 Combat Bots Only 4 | . 3 3 4 1 . 2 2 1 Max Kills in Single Turn 4 | . 1 1 4 1 . 1 1 1 Gunslinging . | . . . . . . . . . Exploded 2 | . . . 2 . . . . . Melee 1 | . . 1 1 1 . 1 1 . Uniques/NPCs Destroyed . | . . . . . . . . . Combat | -11 -10 -9 -8 -7 -6 -6 -5 -4 -------- Run | Yrd Mat Mat Mat Fac Fac DSF Fac Fac Hostile Shots Fired 531 | . 19 109 128 26 . 28 43 178 Missed 161 | . 9 30 42 8 . 7 11 54 Hits 370 | . 10 79 86 18 . 21 32 124 Projectile 370 | . 10 79 86 18 . 21 32 124 Critical Strikes 22 | . . 2 6 1 . 3 2 8 Damage Taken 7139 | . 85 901 1596 299 . 630 668 2960 Core 2409 | . 7 191 499 44 . 245 264 1159 Absorbed by Shields 198 | . 12 108 . . . . . 78 Core Remaining (%) 70 | 100 97 52 9 93 . 71 73 . Volleys Fired 67 | . 11 35 18 . . 3 . . Largest 2 | . 1 2 1 . . 1 . . Hottest 60 | . 20 43 60 . . 25 . . Shots Fired 70 | . 11 38 18 . . 3 . . Gun 53 | . 11 25 14 . . 3 . . Cannon 4 | . . . 4 . . . . . Launcher . | . . . . . . . . . Special 13 | . . 13 . . . . . . Kinetic 53 | . 11 25 14 . . 3 . . Thermal 17 | . . 13 4 . . . . . Explosive . | . . . . . . . . . Electromagnetic . | . . . . . . . . . Robot Hit Streak 7 | . 2 4 7 . . 2 . . Robot Miss Streak 3 | . 1 3 3 . . 1 . . Penetration Max . | . . . . . . . . . Secondary Targets . | . . . . . . . . . Shots Hit Robots 85 | . 6 20 29 9 . 6 8 7 Core Hits 31 | . 3 7 14 1 . 3 2 1 Critical Kills 4 | . . 1 1 . . 1 1 . Critical Parts Destroyed 8 | . . . 3 2 . . 2 1 Critical Strikes 12 | . . 1 4 2 . 1 3 1 Destroy 1 | . . . 1 . . . . . Smash 11 | . . 1 3 2 . 1 3 1 Melee Attacks 94 | . . 3 30 21 1 6 13 20 Impact 94 | . . 3 30 21 1 6 13 20 Slashing . | . . . . . . . . . Piercing . | . . . . . . . . . Sneak Attacks 8 | . . . 2 . . . 2 4 Combat Hostiles . | . . . . . . . . . Follow-up Attacks 1 | . . . . . . . . 1 Damage Inflicted 3259 | . 73 297 1259 423 . 246 491 470 Guns 410 | . 73 208 98 . . 31 . . Cannons 51 | . . . 51 . . . . . Explosions 389 | . . . 389 . . . . . Melee 2379 | . . 65 715 423 . 215 491 470 Ramming 6 | . . . 6 . . . . . Kinetic 410 | . 73 208 98 . . 31 . . Thermal 75 | . . 24 51 . . . . . Explosive 389 | . . . 389 . . . . . Electromagnetic . | . . . . . . . . . Impact 2379 | . . 65 715 423 . 215 491 470 Slashing . | . . . . . . . . . Piercing . | . . . . . . . . . Highest Corruption 7 | . . . 5 2 . . 7 7 Average Corruption 4 | . . . 4 1 . . 7 6 Corruption Purged . | . . . . . . . . . Corruption Blocked . | . . . . . . . . . Effects 23 | . . . 11 2 . . 8 2 Message Errors 4 | . . . 2 . . . 2 . Matter Fused 5 | . . . 2 1 . . 2 . Heat Flow Errors 4 | . . . 2 . . . . 2 Energy Discharges 2 | . . . 2 . . . . . Parts Rejected 1 | . . . 1 . . . . . Data Loss (minor) 6 | . . . 2 1 . . 3 . Data Loss (major) 1 | . . . . . . . 1 . Overload Shots . | . . . . . . . . . Overflow Damage 893 | . . . 242 196 . . 167 288 Projectiles 4 | . . . 4 . . . . . Explosions 92 | . . . 92 . . . . . Melee 797 | . . . 146 196 . . 167 288 Knockbacks 14 | . . 1 5 4 . 1 2 1 Impact 14 | . . 1 5 4 . 1 2 1 Kinetic . | . . . . . . . . . Secondary . | . . . . . . . . . Self-Inflicted Damage 104 | . . . 104 . . . . . Shots 1 | . . . 1 . . . . . Rammed 3 | . . . 3 . . . . . Targets Rammed 3 | . . . 3 . . . . . Kicked . | . . . . . . . . . Crushed . | . . . . . . . . . Highest Temperature 276 | . . 16 276 . . 12 . 160 Average Temperature 92 | . . 8 108 . . 9 . 60 Received Heat Transfer 2115 | . 16 438 711 . . 72 324 554 Siege Activations . | . . . . . . . . . Martial Activations . | . . . . . . . . . Shielding Activations . | . . . . . . . . . Robots Disrupted . | . . . . . . . . . Combat Hostiles . | . . . . . . . . . Robots Corrupted 9 | . . . 3 1 . . 2 3 Combat Hostiles 7 | . . . 3 1 . . 2 1 Parts Fried 21 | . . . 9 . . . 3 9 Impact Corruptions 24 | . . . 5 7 . . 3 9 Robots Melted . | . . . . . . . . . Combat Hostiles . | . . . . . . . . . Parts Melted . | . . . . . . . . . Heat Transferred 148 | . . 74 74 . . . . . Parts Sabotaged . | . . . . . . . . . Parts Stolen . | . . . . . . . . . Parts Stripped . | . . . . . . . . . Power Chain Reactions . | . . . . . . . . . Alert | -11 -10 -9 -8 -7 -6 -6 -5 -4 ------- Run | Yrd Mat Mat Mat Fac Fac DSF Fac Fac Maximum Alert Level . | . . . . . . . . . Low Security (%) 100 | 100 100 100 100 100 100 100 100 100 Level 1 . | . . . . . . . . . Level 2 . | . . . . . . . . . Level 3 . | . . . . . . . . . Level 4 . | . . . . . . . . . Level 5 . | . . . . . . . . . High Security . | . . . . . . . . . Max Security . | . . . . . . . . . Peak Influence 150 | . 60 70 150 46 1 66 70 30 Initial 46 | . . 10 . 46 . . 23 . Average 23 | . 19 19 66 6 . 13 17 1 Influence Increases 1062 | . 115 130 438 70 1 81 131 96 Destroy 0b10 Robot/C 500 | . 60 100 180 40 . 40 60 20 Destroy 0b10 Robot/NC 50 | . . . 25 . . . 10 15 Destroy Leader 132 | . 10 30 42 20 . 10 10 10 Successful Hack 9 | . . . . 5 . . . 4 Disable Machine 45 | . . . 15 . . . 30 . Destroy Structure 41 | . . . 26 5 1 1 6 2 Partial Spotted 15 | . 15 . . . . . . . Lose Combat Pursuer 270 | . 30 . 150 . . 30 15 45 Influence Decreases 1062 | . 90 155 336 172 1 35 177 96 Entered New Map 94 | . . 15 . 56 . . 23 . Time Decay 729 | . 90 100 275 116 1 . 102 45 Lost Part 239 | . . 40 61 . . 35 52 51 Squads Dispatched 18 | . 1 1 5 3 1 2 1 4 Investigation 6 | . 1 . 1 1 1 . 1 1 Extermination 1 | . . . . 1 . . . . Reinforcement 9 | . . 1 2 1 . 2 . 3 Assault 2 | . . . 2 . . . . . Garrison . | . . . . . . . . . Intercept . | . . . . . . . . . Searches Triggered . | . . . . . . . . . Construction Impeded 1 | . . . 1 . . . . . Haulers Reinforced . | . . . . . . . . . Active Scanning Responses . | . . . . . . . . . Cargo Convoy Interrupts . | . . . . . . . . . Stealth | -11 -10 -9 -8 -7 -6 -6 -5 -4 --------- Run | Yrd Mat Mat Mat Fac Fac DSF Fac Fac Distress Signals 2 | . . . 2 . . . . . Communications Jammed . | . . . . . . . . . Distress Signals . | . . . . . . . . . Times Spotted 82 | . 8 15 28 4 . 7 4 16 Peak Tracking Total 11 | . 6 6 10 3 . 3 4 11 Tactical Retreats 10 | . 1 . 4 . . 2 1 2 Traps | -11 -10 -9 -8 -7 -6 -6 -5 -4 ------- Run | Yrd Mat Mat Mat Fac Fac DSF Fac Fac Traps Triggered 5 | . 1 . 3 . . . . 1 Indirectly . | . . . . . . . . . Trap Hack Attempts . | . . . . . . . . . Triggered . | . . . . . . . . . Disarmed . | . . . . . . . . . Reprogrammed . | . . . . . . . . . Reused . | . . . . . . . . . Traps Extracted . | . . . . . . . . . Installed . | . . . . . . . . . Triggered . | . . . . . . . . . Machines | -11 -10 -9 -8 -7 -6 -6 -5 -4 ---------- Run | Yrd Mat Mat Mat Fac Fac DSF Fac Fac Machines Disabled 3 | . . . 1 . . . 2 . Max in Single Turn 1 | . . . 1 . . . 1 . Garrison Access 1 | . . . 1 . . . . . Machines Repaired . | . . . . . . . . . Machines Dismantled . | . . . . . . . . . Machines Sabotaged . | . . . . . . . . . Overloaded Fab Kills . | . . . . . . . . . Hacking | -11 -10 -9 -8 -7 -6 -6 -5 -4 --------- Run | Yrd Mat Mat Mat Fac Fac DSF Fac Fac Machines Accessed 15 | . 3 1 2 4 2 . 1 2 Terminals 11 | . 2 1 2 2 2 . . 2 Fabricators 1 | . . . . 1 . . . . Repair Stations . | . . . . . . . . . Recycling Units 3 | . 1 . . 1 . . 1 . Scanalyzers . | . . . . . . . . . Garrison Access . | . . . . . . . . . Total Hacks 35 | . 6 2 6 10 3 . 3 5 Successful 23 | . 4 2 3 8 1 . 1 4 Failed 12 | . 2 . 3 2 2 . 2 1 Catastrophic 4 | . 1 . 1 . 1 . . 1 Database Lockouts . | . . . . . . . . . Manual 7 | . 2 . . 3 . . . 2 Terminals 27 | . 4 2 6 7 3 . . 5 Fabricators 2 | . . . . 2 . . . . Repair Stations . | . . . . . . . . . Recycling Units 6 | . 2 . . 1 . . 3 . Scanalyzers . | . . . . . . . . . Garrison Access . | . . . . . . . . . Terminal Hacks 17 | . 2 2 3 5 1 . . 4 Record 8 | . . . 1 4 . . . 3 Robot Analysis 1 | . 1 . . . . . . . Open DSF 3 | . . . . 1 1 . . 1 Alert Level 2 | . . 1 1 . . . . . Dispatch Records 1 | . . . 1 . . . . . Zone Layout 2 | . 1 1 . . . . . . Fabricator Hacks 2 | . . . . 2 . . . . Network Status 1 | . . . . 1 . . . . Build 1 | . . . . 1 . . . . Repair Station Hacks . | . . . . . . . . . Recycling Unit Hacks 3 | . 1 . . 1 . . 1 . Report Inventory 3 | . 1 . . 1 . . 1 . Scanalyzer . | . . . . . . . . . Garrison Access Hacks . | . . . . . . . . . Unauthorized Hacks . | . . . . . . . . . Terminals . | . . . . . . . . . Fabricators . | . . . . . . . . . Repair Stations . | . . . . . . . . . Recycling Units . | . . . . . . . . . Scanalyzers . | . . . . . . . . . Garrison Access . | . . . . . . . . . Data Cores Recovered . | . . . . . . . . . Used . | . . . . . . . . . Hacking Detections 9 | . 2 . 2 2 1 . 1 1 Full Trace Events 4 | . . . 1 1 1 . 1 . Feedback Events . | . . . . . . . . . Feedback Blocked . | . . . . . . . . . Robot Schematics Acquired . | . . . . . . . . . Robots Built 1 | . . . . 1 . . . . Authchips . | . . . . . . . . . Time 81 | . . . . 81 . . . . Total Robot Build Rating 1 | . . . . 1 . . . . Part Schematics Acquired . | . . . . . . . . . Parts Built . | . . . . . . . . . Authchips . | . . . . . . . . . Time . | . . . . . . . . . Total Part Build Rating . | . . . . . . . . . Part Studies Acquired . | . . . . . . . . . Parts Repaired . | . . . . . . . . . Time . | . . . . . . . . . Parts Recycled . | . . . . . . . . . Recycled Matter . | . . . . . . . . . Retrieved Matter . | . . . . . . . . . Retrieved Components . | . . . . . . . . . Parts Scanalyzed . | . . . . . . . . . Part Schematics Acquired . | . . . . . . . . . Parts Damaged . | . . . . . . . . . Bothacking | -11 -10 -9 -8 -7 -6 -6 -5 -4 ------------ Run | Yrd Mat Mat Mat Fac Fac DSF Fac Fac Used RIF Installer . | . . . . . . . . . Robots Hacked . | . . . . . . . . . Non-combat . | . . . . . . . . . Combat . | . . . . . . . . . Robot Hacks Applied . | . . . . . . . . . Relay Couplers Released 1 | . . . 1 . . . . . Machine Destruction 1 | . . . 1 . . . . . Fabnet Peak Effective % . | . . . . . . . . . Robots Rewired . | . . . . . . . . . Allies Hacked . | . . . . . . . . . Hacks Repelled . | . . . . . . . . . Allies | -11 -10 -9 -8 -7 -6 -6 -5 -4 -------- Run | Yrd Mat Mat Mat Fac Fac DSF Fac Fac Total Allies 1 | . . . . 1 . . . . Largest Group 1 | . . . . 1 . . . . Highest-Rated Group 10 | . . . . 10 . . . . Highest-Rated Ally 10 | . . . . 10 . . . . Total Orders . | . . . . . . . . . Ally Attacks . | . . . . . . . . . Total Damage . | . . . . . . . . . Kills . | . . . . . . . . . Allies Corrupted . | . . . . . . . . . Allies Melted . | . . . . . . . . . Intel | -11 -10 -9 -8 -7 -6 -6 -5 -4 ------- Run | Yrd Mat Mat Mat Fac Fac DSF Fac Fac Active Infowar (turns) 2104 | . 191 350 31 667 222 137 158 348 Sensors 1532 | . . . . 667 222 137 158 348 Terrain 755 | . . . 31 . 222 137 17 348 Seismic 541 | . 191 350 . . . . . . Robot Analysis Total 1 | . 1 . . . . . . . Derelict Logs Recovered . | . . . . . . . . . Drone Launches . | . . . . . . . . . Drone Recoveries . | . . . . . . . . . Exploration | -11 -10 -9 -8 -7 -6 -6 -5 -4 ------------- Run | Yrd Mat Mat Mat Fac Fac DSF Fac Fac Turns Passed 3300 | 35 225 355 788 693 222 147 380 455 Spaces Moved 1877 | 40 294 139 403 418 133 98 171 181 Core 229 | 37 44 4 130 . . . 14 . Treads 679 | 3 . 118 273 16 . . 88 181 Legs 573 | . . . . 402 133 38 . . Wheels . | . . . . . . . . . Hover . | . . . . . . . . . Flight 396 | . 250 17 . . . 60 69 . Fastest Speed 31 | 50 37 50 50 120 120 31 34 165 Average Speed 117 | 70 42 144 153 121 120 70 109 165 Slowest Speed 310 | 160 60 160 200 190 120 310 200 240 Overloaded Moves . | . . . . . . . . . Propulsion Burnouts . | . . . . . . . . . Robots Hopped 3 | . 3 . . . . . . . Potential Cave-ins 3 | . . . 2 . . . . 1 Cave-ins Triggered 3 | . . . 2 . . . 1 . Exploration Rate (%) 24 | 2 63 14 31 11 4 81 5 5 Regions Visited 8 Branch Regions . Pre-discovered Areas . | . . . . . . . . . Known Exits Taken 2 | . . . . . 1 . 1 . Unknown Exits Taken 5 | 1 1 1 1 1 . . . . Scrap Searched . | . . . . . . . . . Spaces Dug 19 | . . . 8 5 1 1 3 1 Terrain Destroyed 57 | . . . 46 5 1 1 3 1 Melee 19 | . . . 8 5 1 1 3 1 Projectile 2 | . . . 2 . . . . . AOE 36 | . . . 36 . . . . . Terrain Rammed . | . . . . . . . . . Walls Destroyed . | . . . . . . . . . Machines Disabled . | . . . . . . . . . Actions | -11 -10 -9 -8 -7 -6 -6 -5 -4 --------- Run | Yrd Mat Mat Mat Fac Fac DSF Fac Fac Total 2710 | 44 377 234 499 564 193 158 335 306 Wait 543 | . 64 46 7 98 55 43 130 100 Move 1863 | 39 287 138 402 417 132 97 170 181 Hop 3 | . 3 . . . . . . . Pick Up 18 | . 2 . 6 4 2 . 1 3 Fast Attach 54 | 4 4 5 18 8 . . 13 2 Attach 23 | . 2 3 6 2 2 2 1 5 Detach 15 | 1 3 3 4 . . . 4 . Swap 12 | . 1 1 . 3 1 6 . . Drop 20 | . . . 5 11 . 1 3 . Fire 67 | . 11 35 18 . . 3 . . Melee 89 | . . 3 30 21 1 6 13 15 Ram 3 | . . . 3 . . . . . Kick . | . . . . . . . . . Crush . | . . . . . . . . . Escape Stasis . | . . . . . . . . . Rewire . | . . . . . . . . . Trap . | . . . . . . . . . Miscellaneous . | . . . . . . . . . Route ------- -11/Scrapyard -10/Materials -9/Materials -8/Materials -7/Factory -6/Factory -6/DSF -5/Factory -4/Factory (discovered 1 exit: [Ext]) History --------- Turn | Location | Event 25 | -11/Scrapyard | Discovered new exit (range 16) 36 | -11/Scrapyard | Entered Materials 259 | -10/Materials | Discovered new exit (range 6) 261 | -10/Materials | Entered another Materials area 261 | -9/Materials | Evolved 2 slots: Propulsion x1, Utility x1 303 | -9/Materials | Build established: Mutant 505 | -9/Materials | Discovered new exit (range 16) 616 | -9/Materials | Entered another Materials area 616 | -8/Materials | Evolved 2 slots: Power x1, Propulsion x1 644 | -8/Materials | Lost 8 parts (1p3n3u1w) 753 | -8/Materials | Crushed by falling debris 779 | -8/Materials | Crushed by falling debris 824 | -8/Materials | Core integrity fell below 50% 852 | -8/Materials | Lost 7 parts (4p1u2w) 943 | -8/Materials | Core integrity fell below 20% 1383 | -8/Materials | Discovered new exit (range 15) 1404 | -8/Materials | Entered Factory 1404 | -7/Factory | Evolved 2 slots: Utility x2 1712 | -7/Factory | Fabricated A-02 Transporter (x1) 1873 | -7/Factory | P-60 Hacker assimilated allied *Mickael 2082 | -7/Factory | Discovered new exit (range 10) 2097 | -7/Factory | Entered another Factory area 2097 | -6/Factory | Evolved 2 slots: Utility x2 2318 | -6/Factory | Identified exit to DSF 2319 | -6/Factory | Entered DSF 2358 | -6/DSF | Additional patrols routed to DSF 2389 | -6/DSF | Build established: Assassin 2453 | -6/DSF | Discovered new exit (range 15) 2466 | -6/DSF | Identified exit to Factory 2466 | -6/DSF | Entered Factory 2466 | -5/Factory | Evolved 2 slots: Power x1, Utility x1 2556 | -5/Factory | Crushed by falling debris 2588 | -5/Factory | Lost 4 parts (2n2u) 2805 | -5/Factory | Build established: Mutant 2824 | -5/Factory | Discovered new exit (range 12) 2841 | -5/Factory | Identified exit to Factory 2846 | -5/Factory | Entered another Factory area 2846 | -4/Factory | Evolved 2 slots: Utility x1, Weapon x1 2857 | -4/Factory | Identified exit to DSF 3134 | -4/Factory | Build established: Gladiator 3168 | -4/Factory | Discovered new exit (range 20) 3252 | -4/Factory | Spotted B-86 Titan 3291 | -4/Factory | Core integrity fell below 50% 3298 | -4/Factory | Core integrity fell below 20% 3301 | -4/Factory | Destroyed by G-73 Enforcer with Heavy Laser Last Messages --------------- Arm. Medium Treads destroyed. Force Booster destroyed. Imp. Targeting Computer destroyed. Critical hit (Blast). Arm. Medium Treads destroyed. B-86 Titan activates siege mode. Acquired 1 matter. Remote Force Field destroyed. Penetrated by Slug. Imp. Medium Treads destroyed. Adv. Terrain Scanner destroyed. Nuclear Pulse Thruster destroyed. Rnf. Fission Core destroyed. Penetrated by Slug. Slug penetrates Reinforced Barrier. Critical hit (Burn: +50). Hvy. Mace destroyed. Power Amplifier destroyed. Imp. System Restoration Module destroyed. Critical hit (Burn: +37). Map ----- +----------------------------------------------------+ | ?????????????????????????????????????????????????? | | ?????????????????????????????????????????????????? | | ?????????????????????????????????????????????????? | | ?????????????????????????????????????????????????? | | ?????????????????????????????????????????????????? | | ?????????????????????????????????????????????????? | | ?????????????????????????????????????????????????? | | ?????????????????????????????????????????????????? | | ?????????????????????????????????????????????????? | | ?????????????????????????????????????????????????? | | ?????????????????????????????????????????????????? | | ??????????###?####+##????????????????????????????? | | ?????????? ? ########?????????????????????? | | ?????????# ? ??????????????????????? | | ?????????# %#??????????????????????? | | ?????????#"" """" """"" #??????????????????????? | | ?????????#"F """" """"" #??????????????????????? | | ?????????#"" """" """ #??????????????????????? | | ?#+#######"" g #??????????????????????? | | !] gh###????????????????????? | | ?? *] [! BB #????????????????????? | | ???? * [! gBB #????????????????????? | | ?????????# % h ggg;??????????????????????? | | ?????????# % gg ##?????????????????????? | | ?????????#" ##"""###;;;#?????????????????????? | | ?????????## #?###??# @%#?????????????????????? | | ??????? ?## #????#?#####?????????????????????? | | ??????????# ##?#???#?????????????????????????? | | ??????????# #??????#?????????????????????????? | | ?????????## #??#??#?#???? ???????????????????? | | ???? ??### % ###???#???